fUST/lending_fUST_20250608
["ID","MTS","AMOUNT","RATE_DAILY","PERIOD"]
[364970869,1749370240510,-440.0,0.00019178,2]
[364970870,1749370240519,-440.0,0.00019178,2]
[364970871,1749370240530,-430.0,0.00019178,2]
[364970872,1749370240540,-440.0,0.00019178,2]
[364970873,1749370240550,-430.0,0.00019178,2]
[364970874,1749370240560,-432.03593407,0.00019178,2]
[364970875,1749370240571,-440.0,0.00019178,2]
[364970876,1749370240581,-151.0,0.00019178,2]
[364970877,1749370240591,-430.0,0.00019178,2]
[364970878,1749370240601,-151.0,0.00019178,2]
[364970879,1749370240611,-151.0,0.00019178,2]
[364970880,1749370240621,-151.0,0.00019178,2]
[364970881,1749370240631,-151.0,0.00019178,2]
[364970882,1749370240641,-440.0,0.00019178,2]
[364970883,1749370240651,-151.0,0.00019178,2]
[364970884,1749370240662,-353.871596,0.00019178,2]
[364970885,1749370240671,-353.871596,0.00019178,2]
[364970886,1749370240681,-353.871596,0.00019178,2]
[364970887,1749370240691,-353.871596,0.00019178,2]
[364970888,1749370240701,-353.871596,0.00019178,2]
[364970889,1749370240711,-151.0,0.00019178,2]
[364970890,1749370240721,-220.096636,0.00019178,2]
[364970891,1749370240731,-440.0,0.00019178,2]
[364970892,1749370240740,-353.871596,0.00019178,2]
[364970893,1749370240750,-353.871596,0.00019178,2]
[364970894,1749370240760,-353.871596,0.00019178,2]
[364970895,1749370240770,-353.871596,0.00019178,2]
[364970896,1749370240780,-353.871596,0.00019178,2]
[364970897,1749370240789,-439.00891239,0.00019178,2]
[364970898,1749370240799,-151.0,0.00019178,2]
[364970899,1749370240810,-151.0,0.00019178,2]
[364970900,1749370240820,-151.0,0.00019178,2]
[364970901,1749370240830,-151.0,0.00019178,2]
[364970902,1749370240844,-151.0,0.00019178,2]
[364970903,1749370240854,-791.26,0.00019178,2]
[364970904,1749370240864,-440.0,0.00019178,2]
[364970905,1749370240874,-1098.08,0.00019178,2]
[364970906,1749370240885,-151.0,0.00019178,2]
[364970907,1749370240894,-151.0,0.00019178,2]
[364970908,1749370240905,-151.0,0.00019178,2]
[364970909,1749370240915,-151.0,0.00019178,2]
[364970910,1749370240925,-151.0,0.00019178,2]
[364970911,1749370240936,-440.0,0.00019178,2]
[364970912,1749370240946,-440.0,0.00019178,2]
[364970913,1749370240957,-435.91555211,0.00019178,2]
[364970914,1749370240967,-440.0,0.00019178,2]
[364970915,1749370240977,-151.0,0.00019178,2]
[364970916,1749370240988,-151.0,0.00019178,2]
[364970917,1749370240999,-2602.26,0.00019178,2]
[364970918,1749370241008,-151.0,0.00019178,2]
[364970919,1749370241018,-151.0,0.00019178,2]
[364970920,1749370241028,-151.0,0.00019178,2]
[364970921,1749370241038,-440.0,0.00019178,2]
[364970922,1749370241048,-270.0,0.00019178,2]
[364970923,1749370241058,-430.0,0.00019178,2]
[364970924,1749370241067,-440.0,0.00019178,2]
[364970925,1749370241077,-440.0,0.00019178,2]
[364970926,1749370241087,-440.0,0.00019178,2]
[364970927,1749370241096,-420.0,0.00019178,2]
[364970928,1749370241106,-440.0,0.00019178,2]
[364970929,1749370241115,-440.0,0.00019178,2]
[364970930,1749370241125,-440.0,0.00019178,2]
[364970931,1749370241134,-431.50119131,0.00019178,2]
[364970932,1749370241145,-500.0,0.00019178,2]
[364970933,1749370241156,-500.16,0.00019178,2]
[364970934,1749370241165,-440.0,0.00019178,2]
[364970935,1749370241176,-440.0,0.00019178,2]
[364970936,1749370241187,-430.0,0.00019178,2]
[364970937,1749370241197,-440.0,0.00019178,2]
[364970938,1749370241206,-440.0,0.00019178,2]
[364970939,1749370241216,-440.0,0.00019178,2]
[364970940,1749370241226,-440.0,0.00019178,2]
[364970941,1749370241235,-365.70755671,0.00019178,2]
[364970942,1749370241245,-440.0,0.00019178,2]
[364970943,1749370241255,-1193.65,0.00019178,2]
[364970944,1749370241266,-440.0,0.00019178,2]
[364970945,1749370241277,-440.0,0.00019178,2]
[364970946,1749370241287,-151.0,0.00019178,2]
[364970947,1749370241297,-151.0,0.00019178,2]
[364970948,1749370241307,-294.369148,0.00019178,2]
[364970949,1749370241317,-440.0,0.00019178,2]
[364970950,1749370241341,-481.17,0.00019178,2]
[364970951,1749370241351,-430.0,0.00019178,2]
[364970952,1749370241361,-440.0,0.00019178,2]
[364970953,1749370241371,-440.0,0.00019178,2]
[364970954,1749370241382,-440.0,0.00019178,2]
[364970955,1749370241392,-440.0,0.00019178,2]
[364970956,1749370241403,-252.51477372,0.00019178,2]
[364970957,1749370241414,-440.0,0.00019178,2]
[364970958,1749370241425,-793.492614,0.00019178,2]
[364970959,1749370241436,-1228.34,0.00019178,2]
[364970960,1749370241446,-793.492614,0.00019178,2]
[364970961,1749370241457,-793.492614,0.00019178,2]
[364970962,1749370241467,-793.492614,0.00019178,2]
[364970963,1749370241478,-793.492614,0.00019178,2]
[364970964,1749370241488,-793.492614,0.00019178,2]
[364970965,1749370241498,-793.492614,0.00019178,2]
[364970966,1749370241508,-793.492614,0.00019178,2]
[364970967,1749370241518,-793.492614,0.00019178,2]
[364970968,1749370241528,-793.492614,0.00019178,2]
[364970969,1749370241538,-793.492614,0.00019178,2]
[364970970,1749370241549,-793.492614,0.00019178,2]
[364970971,1749370241559,-440.0,0.00019178,2]
[364970972,1749370241570,-440.0,0.00019178,2]
[364970973,1749370241580,-440.0,0.00019178,2]
[364970974,1749370241591,-187.70806257,0.00019178,2]
[364970975,1749370241601,-440.0,0.00019178,2]
[364970976,1749370241612,-440.0,0.00019178,2]
[364970977,1749370241622,-440.0,0.00019178,2]
[364970978,1749370241633,-440.0,0.00019178,2]
[364970979,1749370241644,-440.0,0.00019178,2]
[364970980,1749370241655,-485.32046801,0.00019178,2]
[364970981,1749370241665,-437.66441136,0.00019178,2]
[364970982,1749370241676,-440.0,0.00019178,2]
[364970983,1749370241686,-151.0,0.00019178,2]
[364970984,1749370241697,-151.0,0.00019178,2]
[364970985,1749370241708,-151.0,0.00019178,2]
[364970986,1749370241718,-151.0,0.00019178,2]
[364970987,1749370241728,-219.145308,0.00019178,2]
[364970988,1749370241738,-440.0,0.00019178,2]
[364970989,1749370241749,-440.0,0.00019178,2]
[364970990,1749370241759,-440.0,0.00019178,2]
[364970991,1749370241769,-440.0,0.00019178,2]
[364970992,1749370241779,-420.0,0.00019178,2]
[364970993,1749370241789,-440.0,0.00019178,2]
[364970994,1749370241799,-151.0,0.00019178,2]
[364970995,1749370241809,-440.0,0.00019178,2]
[364970996,1749370241820,-151.0,0.00019178,2]
[364970997,1749370241829,-151.0,0.00019178,2]
[364970998,1749370241843,-151.0,0.00019178,2]
[364970999,1749370241853,-440.0,0.00019178,2]
[364971000,1749370241863,-151.0,0.00019178,2]
[364971001,1749370241873,-151.0,0.00019178,2]
[364971002,1749370241883,-440.0,0.00019178,2]
[364971003,1749370241894,-350.0,0.00019178,2]
[364971004,1749370241904,-440.0,0.00019178,2]
[364971005,1749370241914,-440.0,0.00019178,2]
[364971006,1749370241925,-440.0,0.00019178,2]
[364971007,1749370241936,-440.0,0.00019178,2]
[364971008,1749370241945,-440.0,0.00019178,2]
[364971009,1749370241956,-440.0,0.00019178,2]
[364971010,1749370241966,-440.0,0.00019178,2]
[364971011,1749370241976,-440.0,0.00019178,2]
[364971012,1749370241986,-1252.61,0.00019178,2]
[364971013,1749370241996,-522.81,0.00019178,2]
[364971014,1749370242006,-500.0,0.00019178,2]
[364971015,1749370242015,-500.0,0.00019178,2]
[364971016,1749370242025,-500.0,0.00019178,2]
[364971017,1749370242036,-500.0,0.00019178,2]
[364971018,1749370242046,-500.0,0.00019178,2]
[364971019,1749370242056,-440.0,0.00019178,2]
[364971020,1749370242067,-500.0,0.00019178,2]
[364971021,1749370242077,-500.0,0.00019178,2]
[364971022,1749370242086,-430.0,0.00019178,2]
[364971023,1749370242096,-500.0,0.00019178,2]
[364971024,1749370242106,-500.0,0.00019178,2]
[364971025,1749370242116,-500.0,0.00019178,2]
[364971026,1749370242126,-440.0,0.00019178,2]
[364971027,1749370242135,-500.0,0.00019178,2]
[364971028,1749370242145,-500.0,0.00019178,2]
[364971029,1749370242155,-500.0,0.00019178,2]
[364971030,1749370242165,-500.0,0.00019178,2]
[364971031,1749370242175,-500.0,0.00019178,2]
[364971032,1749370242185,-500.0,0.00019178,2]
[364971033,1749370242195,-500.0,0.00019178,2]
[364971034,1749370242206,-500.0,0.00019178,2]
[364971035,1749370242216,-500.0,0.00019178,2]
[364971036,1749370242226,-480.33854591,0.00019178,2]
[364971037,1749370242236,-500.0,0.00019178,2]
[364971038,1749370242246,-440.0,0.00019178,2]
[364971039,1749370242256,-211.17751924,0.00019178,2]
[364971040,1749370242266,-440.0,0.00019178,2]
[364971041,1749370242276,-440.0,0.00019178,2]
[364971042,1749370242286,-681.62,0.00019178,2]
[364971043,1749370242296,-188.49113995,0.00019178,2]
[364971044,1749370242307,-440.0,0.00019178,2]
[364971045,1749370242316,-440.0,0.00019178,2]
[364971046,1749370242328,-440.0,0.00019178,2]
[364971047,1749370242337,-440.0,0.00019178,2]
[364971048,1749370242348,-440.0,0.00019178,2]
[364971049,1749370242358,-430.0,0.00019178,2]
[364971050,1749370242368,-440.0,0.00019178,2]
[364971051,1749370242378,-443.1506521,0.00019178,2]
[364971052,1749370242390,-440.0,0.00019178,2]
[364971053,1749370242401,-440.0,0.00019178,2]
[364971054,1749370242412,-440.0,0.00019178,2]
[364971055,1749370242422,-440.0,0.00019178,2]
[364971056,1749370242432,-440.0,0.00019178,2]
[364971057,1749370242442,-410.0,0.00019178,2]
[364971058,1749370242454,-425.10959686,0.00019178,2]
[364971059,1749370242464,-440.0,0.00019178,2]
[364971060,1749370242474,-440.0,0.00019178,2]
[364971061,1749370242485,-440.0,0.00019178,2]
[364971062,1749370242496,-430.0,0.00019178,2]
[364971063,1749370242508,-440.0,0.00019178,2]
[364971064,1749370242519,-2207.65,0.00019178,2]
[364971065,1749370242530,-440.0,0.00019178,2]
[364971066,1749370242541,-440.0,0.00019178,2]
[364971067,1749370242552,-1304.44,0.00019178,2]
[364971068,1749370242563,-3194.87,0.00019178,2]
[364971069,1749370242573,-440.0,0.00019178,2]
[364971070,1749370242582,-430.0,0.00019178,2]
[364971071,1749370242592,-440.0,0.00019178,2]
[364971072,1749370242604,-500.66097253,0.00019178,2]
[364971073,1749370242615,-440.0,0.00019178,2]
[364971074,1749370242626,-440.0,0.00019178,2]
[364971075,1749370242637,-3087.95,0.00019178,2]
[364971076,1749370242647,-440.0,0.00019178,2]
[364971077,1749370242658,-300.4696436,0.00019178,2]
[364971078,1749370242670,-908.71,0.00019178,2]
[364971079,1749370242680,-440.0,0.00019178,2]
[364971080,1749370242691,-440.0,0.00019178,2]
[364971081,1749370242701,-430.0,0.00019178,2]
[364971082,1749370242711,-201.11176095,0.00019178,2]
[364971083,1749370242721,-915.87,0.00019178,2]
[364971084,1749370242731,-3150.35,0.00019178,2]
[364971085,1749370242740,-445.80687986,0.00019178,2]
[364971086,1749370242750,-440.0,0.00019178,2]
[364971087,1749370242760,-430.0,0.00019178,2]
[364971088,1749370242769,-199.32564645,0.00019178,2]
[364971089,1749370242780,-3113.45,0.00019178,2]
[364971090,1749370242789,-420.0,0.00019178,2]
[364971091,1749370242799,-440.0,0.00019178,2]
[364971092,1749370242808,-193.15163171,0.00019178,2]
[364971093,1749370242817,-440.0,0.00019178,2]
[364971094,1749370242827,-440.0,0.00019178,2]
[364971095,1749370242836,-440.0,0.00019178,2]
[364971096,1749370242849,-440.0,0.00019178,2]
[364971097,1749370242859,-443.19957374,0.00019178,2]
[364971098,1749370242868,-440.0,0.00019178,2]
[364971099,1749370242877,-440.0,0.00019178,2]
[364971100,1749370243005,-430.0,0.00019178,2]
[364971101,1749370243016,-440.0,0.00019178,2]
[364971102,1749370243027,-440.0,0.00019178,2]
[364971103,1749370243038,-440.0,0.00019178,2]
[364971104,1749370243048,-440.0,0.00019178,2]
[364971105,1749370243059,-440.0,0.00019178,2]
[364971106,1749370243069,-440.0,0.00019178,2]
[364971107,1749370243079,-440.0,0.00019178,2]
[364971108,1749370243088,-440.0,0.00019178,2]
[364971109,1749370243098,-440.0,0.00019178,2]
[364971110,1749370243107,-430.0,0.00019178,2]
[364971111,1749370243117,-1725.61,0.00019178,2]
[364971112,1749370243127,-430.0,0.00019178,2]
[364971113,1749370243137,-934.54,0.00019178,2]
[364971114,1749370243148,-440.0,0.00019178,2]
[364971115,1749370243159,-440.0,0.00019178,2]
[364971116,1749370243170,-440.0,0.00019178,2]
[364971117,1749370243182,-461.81979733,0.00019178,2]
[364971118,1749370243192,-430.0,0.00019178,2]
[364971119,1749370243202,-440.0,0.00019178,2]
[364971120,1749370243211,-400.0,0.00019178,2]
[364971121,1749370243221,-440.0,0.00019178,2]
[364971122,1749370243231,-419.14815514,0.00019178,2]
[364971123,1749370243240,-430.0,0.00019178,2]
[364971124,1749370243250,-430.0,0.00019178,2]
[364971125,1749370243261,-440.0,0.00019178,2]
[364971126,1749370243271,-440.0,0.00019178,2]
[364971127,1749370243281,-532.39390286,0.00019178,2]
[364971128,1749370243291,-2695.16,0.00019178,2]
[364971129,1749370243300,-440.0,0.00019178,2]
[364971130,1749370243311,-380.0,0.00019178,2]
[364971131,1749370243323,-420.0,0.00019178,2]
[364971132,1749370243333,-440.0,0.00019178,2]
[364971133,1749370243342,-440.0,0.00019178,2]
[364971134,1749370243354,-205.21767907,0.00019178,2]
[364971135,1749370243364,-440.0,0.00019178,2]
[364971136,1749370243374,-440.0,0.00019178,2]
[364971137,1749370243385,-1018.44,0.00019178,2]
[364971138,1749370243397,-440.0,0.00019178,2]
[364971139,1749370243407,-440.0,0.00019178,2]
[364971140,1749370243416,-430.0,0.00019178,2]
[364971141,1749370243426,-324.20011254,0.00019178,2]
[364971142,1749370243437,-440.0,0.00019178,2]
[364971143,1749370243448,-163.5218092,0.00019178,2]
[364971144,1749370243459,-1024.06,0.00019178,2]
[364971145,1749370243468,-151.0,0.00019178,2]
[364971146,1749370243478,-151.0,0.00019178,2]
[364971147,1749370243488,-151.0,0.00019178,2]
[364971148,1749370243498,-440.0,0.00019178,2]
[364971149,1749370243508,-151.0,0.00019178,2]
[364971150,1749370243519,-151.0,0.00019178,2]
[364971151,1749370243528,-151.0,0.00019178,2]
[364971152,1749370243539,-151.0,0.00019178,2]
[364971153,1749370243550,-158.8686,0.00019178,2]
[364971154,1749370243559,-491.26,0.00019178,2]
[364971155,1749370243569,-500.0,0.00019178,2]
[364971156,1749370243580,-178.655647,0.00019178,2]
[364971157,1749370243589,-250.6,0.00019205,2]
[364971158,1749370243599,-500.0,0.00019205,2]
[364971159,1749370243608,-151.0,0.00019205,2]
[364971160,1749370243617,-1069.35,0.00019223,2]
[364971161,1749370243627,-500.0,0.00019233,2]
[364971162,1749370243636,-151.0,0.00019233,2]
[364971163,1749370243646,-151.0,0.00019233,2]
[364971164,1749370243656,-500.0,0.0001926,2]
[364971165,1749370243666,-252.70038246,0.0001926,2]
[364971166,1749370243676,-412.19123506,0.00019288,2]
[364971167,1749370243686,-151.0,0.000194,2]
[364971168,1749370243695,-151.0,0.000194,2]
[364971169,1749370243705,-151.0,0.000194,2]
[364971170,1749370243714,-151.0,0.000194,2]
[364971171,1749370243724,-151.0,0.000194,2]
[364971172,1749370243733,-151.0,0.000194,2]
[364971173,1749370243744,-151.0,0.000194,2]
[364971174,1749370243753,-151.0,0.000194,2]
[364971175,1749370243763,-420.0,0.00019403,2]
[364971176,1749370243773,-420.0,0.00019403,2]
[364971177,1749370243783,-440.0,0.00019452,2]
[364971178,1749370243793,-440.0,0.00019452,2]
[364971179,1749370243802,-440.0,0.00019452,2]
[364971180,1749370243811,-440.0,0.00019452,2]
[364971181,1749370243821,-440.0,0.00019452,2]
[364971182,1749370243831,-440.0,0.00019452,2]
[364971183,1749370243842,-440.0,0.00019452,2]
[364971184,1749370243854,-440.0,0.00019452,2]
[364971185,1749370243864,-440.0,0.00019452,2]
[364971186,1749370243873,-440.0,0.00019452,2]
[364971187,1749370243883,-440.0,0.00019452,2]
[364971188,1749370243892,-373.21356054,0.00019452,2]
[364971189,1749370243902,-440.0,0.00019452,2]
[364971190,1749370243912,-420.0,0.00019452,2]
[364971191,1749370243921,-440.0,0.00019452,2]
[364971192,1749370243931,-440.0,0.00019452,2]
[364971193,1749370243941,-356.85291492,0.00019452,2]
[364971194,1749370243951,-440.0,0.00019452,2]
[364971195,1749370243960,-440.0,0.00019452,2]
[364971196,1749370243970,-328.062289,0.00019452,2]
[364971197,1749370243979,-440.0,0.00019452,2]
[364971198,1749370243989,-420.0,0.00019452,2]
[364971199,1749370243998,-420.0,0.00019452,2]
[364971200,1749370244007,-440.0,0.00019452,2]
[364971201,1749370244017,-440.0,0.00019452,2]
[364971202,1749370244027,-440.0,0.00019452,2]
[364971203,1749370244037,-440.0,0.00019452,2]
[364971204,1749370244046,-440.0,0.00019452,2]
[364971205,1749370244056,-440.0,0.00019452,2]
[364971206,1749370244066,-151.0,0.00019452,2]
[364971207,1749370244076,-151.0,0.00019452,2]
[364971208,1749370244086,-151.0,0.00019452,2]
[364971209,1749370244096,-353.871596,0.00019452,2]
[364971210,1749370244105,-353.871596,0.00019452,2]
[364971211,1749370244115,-353.871596,0.00019452,2]
[364971212,1749370244124,-353.871596,0.00019452,2]
[364971213,1749370244134,-353.871596,0.00019452,2]
[364971214,1749370244144,-353.871596,0.00019452,2]
[364971215,1749370244153,-151.0,0.00019452,2]
[364971216,1749370244163,-151.0,0.00019452,2]
[364971217,1749370244173,-151.0,0.00019452,2]
[364971218,1749370244183,-791.26,0.00019452,2]
[364971219,1749370244193,-184.93947362,0.00019452,2]
[364971220,1749370244202,-1098.08,0.00019452,2]
[364971221,1749370244212,-151.0,0.00019452,2]
[364971222,1749370244221,-190.51631516,0.00019452,2]
[364971223,1749370244230,-151.0,0.00019452,2]
[364971224,1749370244240,-151.0,0.00019452,2]
[364971225,1749370244251,-440.0,0.00019452,2]
[364971226,1749370244260,-440.0,0.00019452,2]
[364971227,1749370244271,-2602.26,0.00019452,2]
[364971228,1749370244280,-151.0,0.00019452,2]
[364971229,1749370244290,-151.0,0.00019452,2]
[364971230,1749370244300,-151.0,0.00019452,2]
[364971231,1749370244310,-440.0,0.00019452,2]
[364971232,1749370244320,-433.3464343,0.00019452,2]
[364971233,1749370244330,-440.0,0.00019452,2]
[364971234,1749370244339,-440.0,0.00019452,2]
[364971235,1749370244348,-500.0,0.00019452,2]
[364971236,1749370244358,-500.16,0.00019452,2]
[364971237,1749370244367,-440.0,0.00019452,2]
[364971238,1749370244378,-410.0,0.00019452,2]
[364971239,1749370244388,-440.0,0.00019452,2]
[364971240,1749370244398,-420.0,0.00019452,2]
[364971241,1749370244408,-430.0,0.00019452,2]
[364971242,1749370244418,-440.0,0.00019452,2]
[364971243,1749370244427,-1193.65,0.00019452,2]
[364971244,1749370244437,-440.0,0.00019452,2]
[364971245,1749370244446,-440.0,0.00019452,2]
[364971246,1749370244457,-481.17,0.00019452,2]
[364971247,1749370244467,-415.5,0.00019452,2]
[364971248,1749370244477,-1228.34,0.00019452,2]
[364971249,1749370244487,-793.492614,0.00019452,2]
[364971250,1749370244498,-793.492614,0.00019452,2]
[364971251,1749370244508,-793.492614,0.00019452,2]
[364971252,1749370244518,-793.492614,0.00019452,2]
[364971253,1749370244528,-793.492614,0.00019452,2]
[364971254,1749370244538,-793.492608,0.00019452,2]
[364971255,1749370244548,-440.0,0.00019452,2]
[364971256,1749370244558,-440.0,0.00019452,2]
[364971257,1749370244568,-440.0,0.00019452,2]
[364971258,1749370244577,-440.0,0.00019452,2]
[364971259,1749370244587,-440.0,0.00019452,2]
[364971260,1749370244598,-440.0,0.00019452,2]
[364971261,1749370244607,-440.0,0.00019452,2]
[364971262,1749370244617,-440.0,0.00019452,2]
[364971263,1749370244627,-151.0,0.00019452,2]
[364971264,1749370244637,-301.732376,0.00019452,2]
[364971265,1749370244647,-420.0,0.00019452,2]
[364971266,1749370244657,-350.0,0.00019452,2]
[364971267,1749370244667,-440.0,0.00019452,2]
[364971268,1749370244677,-440.0,0.00019452,2]
[364971269,1749370244687,-440.0,0.00019452,2]
[364971270,1749370244697,-440.0,0.00019452,2]
[364971271,1749370244707,-440.0,0.00019452,2]
[364971272,1749370244716,-440.0,0.00019452,2]
[364971273,1749370244727,-440.0,0.00019452,2]
[364971274,1749370244736,-1252.61,0.00019452,2]
[364971275,1749370244746,-522.81,0.00019452,2]
[364971276,1749370244756,-440.0,0.00019452,2]
[364971277,1749370244766,-440.0,0.00019452,2]
[364971278,1749370244776,-440.0,0.00019452,2]
[364971279,1749370244786,-681.62,0.00019452,2]
[364971280,1749370244796,-440.0,0.00019452,2]
[364971281,1749370244806,-374.45711979,0.00019452,2]
[364971282,1749370244816,-420.0,0.00019452,2]
[364971283,1749370244826,-440.0,0.00019452,2]
[364971284,1749370244836,-440.0,0.00019452,2]
[364971285,1749370244849,-440.0,0.00019452,2]
[364971286,1749370244859,-430.0,0.00019452,2]
[364971287,1749370244869,-460.29055365,0.00019452,2]
[364971288,1749370244880,-2207.65,0.00019452,2]
[364971289,1749370244891,-440.0,0.00019452,2]
[364971290,1749370244902,-1304.44,0.00019452,2]
[364971291,1749370244912,-3194.87,0.00019452,2]
[364971292,1749370244922,-430.0,0.00019452,2]
[364971293,1749370244932,-390.0,0.00019452,2]
[364971294,1749370244942,-440.0,0.00019452,2]
[364971295,1749370244952,-3087.95,0.00019452,2]
[364971296,1749370244962,-440.0,0.00019452,2]
[364971297,1749370244971,-908.71,0.00019452,2]
[364971298,1749370244982,-440.0,0.00019452,2]
[364971299,1749370244992,-915.87,0.00019452,2]
[364971300,1749370245001,-3150.35,0.00019452,2]
[364971301,1749370245012,-440.0,0.00019452,2]
[364971302,1749370245022,-3113.45,0.00019452,2]
[364971303,1749370245032,-440.0,0.00019452,2]
[364971304,1749370245042,-440.0,0.00019452,2]
[364971305,1749370245053,-440.0,0.00019452,2]
[364971306,1749370245063,-440.0,0.00019452,2]
[364971307,1749370245073,-440.0,0.00019452,2]
[364971308,1749370245083,-300.0,0.00019452,2]
[364971309,1749370245094,-440.0,0.00019452,2]
[364971310,1749370245104,-562.69609105,0.00019452,2]
[364971311,1749370245114,-406.60299656,0.00019452,2]
[364971312,1749370245124,-440.0,0.00019452,2]
[364971313,1749370245134,-445.00578594,0.00019452,2]
[364971314,1749370245144,-260.01932301,0.00019452,2]
[364971315,1749370245153,-1725.61,0.00019452,2]
[364971316,1749370245163,-934.54,0.00019452,2]
[364971317,1749370245173,-440.0,0.00019452,2]
[364971318,1749370245185,-462.67966896,0.00019452,2]
[364971319,1749370245195,-420.0,0.00019452,2]
[364971320,1749370245205,-440.0,0.00019452,2]
[364971321,1749370245214,-440.0,0.00019452,2]
[364971322,1749370245224,-2695.16,0.00019452,2]
[364971323,1749370245235,-440.0,0.00019452,2]
[364971324,1749370245246,-440.0,0.00019452,2]
[364971325,1749370245256,-440.0,0.00019452,2]
[364971326,1749370245266,-440.0,0.00019452,2]
[364971327,1749370245388,-440.0,0.00019452,2]
[364971328,1749370245400,-1018.44,0.00019452,2]
[364971329,1749370245410,-440.0,0.00019452,2]
[364971330,1749370245420,-440.0,0.00019452,2]
[364971331,1749370245430,-440.0,0.00019452,2]
[364971332,1749370245440,-1024.06,0.00019452,2]
[364971333,1749370245452,-151.0,0.00019452,2]
[364971334,1749370245462,-500.0,0.00019452,2]
[364971335,1749370245472,-151.0,0.000195,2]
[364971336,1749370245482,-834.62475315,0.00019584,2]
[364971337,1749370245492,-160.0,0.00019584,2]
[364971338,1749370245502,-151.0,0.00019584,2]
[364971339,1749370245512,-353.871596,0.00019584,2]
[364971340,1749370245522,-353.871596,0.00019584,2]
[364971341,1749370245533,-151.0,0.00019584,2]
[364971342,1749370245543,-215.147445,0.00019584,2]
[364971343,1749370245553,-292.852631,0.00019584,2]
[364971344,1749370245564,-213.05153702,0.00019584,2]
[364971345,1749370245574,-229.60437222,0.00019584,2]
[364971346,1749370245585,-160.0,0.00019584,2]
[364971347,1749370245595,-842.5625,0.00019584,2]
[364971348,1749370245604,-423.98131849,0.00019584,2]
[364971349,1749370245614,-160.0,0.00019584,2]
[364971350,1749370245625,-160.0,0.00019584,2]
[364971351,1749370245635,-11853.97844947,0.00019584,2]
[364971352,1749370245645,-160.0,0.00019584,2]
[364971353,1749370245654,-160.0,0.00019584,2]
[364971354,1749370245664,-979.43,0.00019594,2]
[364971355,1749370245674,-709.0,0.00019594,2]
[364971356,1749370245683,-2223.0,0.00019594,2]
[364971357,1749370245693,-405.0,0.00019594,2]
[364971358,1749370245704,-215.0738,0.000196,2]
[364971359,1749370245715,-151.0,0.000196,2]
[364971360,1749370245725,-151.0,0.000196,2]
[364971361,1749370245734,-11063.36847338,0.0001962,2]
[364971362,1749370245744,-501.80065433,0.00019628,2]
[364971363,1749370245754,-151.0,0.000197,2]
[364971364,1749370245764,-5000.0,0.00019714,2]
[364971365,1749370245773,-16000.0,0.00019714,2]
[364971366,1749370245783,-151.0,0.00019715,2]
[364971367,1749370245793,-353.871596,0.00019715,2]
[364971368,1749370245803,-353.871595,0.00019715,2]